Cogmind - Beta 15 @@@ ROGUE MODE // 2025.10.20 @ 13:04:13 Player: glorp Result: Self-destructed Performance ------------- Evolutions (1) 500 Regions Visited (3) 600 Robots Destroyed (28) 140 Value Destroyed (572) 572 Prototype IDs (2) 40 Alien Tech Used (0) 0 Bonus (0) 0 TOTAL SCORE: 1852 Bonus ------- None Cogmind --------- Core Integrity 358/400 Matter 250/300 Energy 100/100 System Corruption 1% Temperature Cool (49) Movement Walking (120) Location -9/Mines Parts ------- > --- POWER (1) -------- (None) > --- PROPULSION (4) --- Aluminum Leg Aluminum Leg Improved Aluminum Leg > --- UTILITY (2) ------ Improved Heat Sink Medium Storage Unit > --- WEAPON (2) ------- Particle Cannon > --- INVENTORY (10) --- Light Ion Engine Light Ion Engine Aluminum Leg Improved Flight Unit Structural Scanner Beam Cannon Beam Cannon Particle Cannon Light Assault Rifle Datajack Peak State ------------ > --- POWER ------------ Ion Engine > --- PROPULSION ------- Aluminum Leg Aluminum Leg Aluminum Leg Improved Flight Unit > --- UTILITY ---------- Improved Heat Sink Medium Storage Unit > --- WEAPON ----------- Improved Light Cannon Improved Light Cannon > --- INVENTORY -------- Light Ion Engine Light Ion Engine Aluminum Leg Structural Scanner Beam Cannon Beam Cannon Light Assault Rifle Improved Light Cannon Datajack [Rating: 16] Favorites ----------- Power Ion Engine Engine Ion Engine Propulsion Aluminum Leg Leg Aluminum Leg Wheel Wheel Flight Unit Improved Flight Unit Utility Improved Heat Sink Device Improved Heat Sink Storage Small Storage Unit Weapon Beam Cannon Energy Gun Small Laser Energy Cannon Beam Cannon Ballistic Gun Light Assault Rifle Ballistic Cannon Improved Light Cannon Build | -11 -10 -9 -9 ------- Run | Yrd Mat Mat Min Slots Evolved 2 | . . 2 . Power . | . . . . Propulsion 2 | . . 2 . Utility . | . . . . Weapon . | . . . . Parts Attached 26 | 8 8 10 . Power 2 | 1 1 . . Engine 2 | 1 1 . . Core . | . . . . Reactor . | . . . . Propulsion 11 | 4 2 5 . Treads . | . . . . Leg 8 | 2 2 4 . Wheel 2 | 2 . . . Hover . | . . . . Flight 1 | . . 1 . Utility 4 | 1 3 . . Device 2 | . 2 . . Storage 2 | 1 1 . . Processor . | . . . . Hackware . | . . . . Protection . | . . . . Artifact . | . . . . Weapon 9 | 2 2 5 . Energy Gun 2 | 1 . 1 . Energy Cannon 4 | . 2 2 . Ballistic Gun 1 | 1 . . . Ballistic Cannon 2 | . . 2 . Launcher . | . . . . Special Weapon . | . . . . Impact Weapon . | . . . . Slashing Weapon . | . . . . Piercing Weapon . | . . . . Special Melee Weapon . | . . . . Unidentified Prototypes 2 | . . 2 . Parts Lost 2 | . . . 2 Power 1 | . . . 1 Propulsion 1 | . . . 1 Utility . | . . . . Weapon . | . . . . Highest Loss Streak 2 | . . . 2 To Critical Strikes . | . . . . Average Backups 7 | 2 7 8 10 Power 1 | . 1 2 2 Propulsion 1 | 1 . 1 2 Utility . | . . 1 1 Weapon 3 | . 3 4 4 Tool/Special . | . . . . Unused Backups 8 | . 1 4 3 Power 1 | . . . 1 Propulsion 2 | . 1 1 . Utility . | . . . . Weapon 4 | . . 3 1 Tool/Special 1 | . . . 1 Average Slot Usage (%) 96 | . 98 90 94 Engine 13 | . 14 11 11 Leg 30 | . 28 35 41 Device 12 | . 12 11 11 Storage 13 | . 14 11 11 Energy Cannon 21 | . 27 9 19 Ballistic Cannon 3 | . . 12 . Peak Build Rating 16 | 6 9 16 15 Average Rating 9 | 3 8 12 13 On Entrance 7 | . 6 9 15 Naked Turns . | . . . . Heaviest Build 24 | 10 22 24 24 Greatest Support 43 | 20 20 43 43 Greatest Overweight (x) 7 | 3 1 7 . Average Overweight (x) . | . . . . Largest Inventory Capacity 10 | 8 10 10 10 Average Capacity 8 | 7 8 10 10 Most Carried 10 | 5 8 10 10 Average Carried 7 | 3 7 8 10 Final Capacity 10 | 8 10 10 10 Final Carried 10 | 5 8 10 10 Class Distribution -------------------- 63% | Mutant 36% | Scavenger-Mutant Dominant Class ---------------- Mutant | -10/Materials Scavenger-Mutant | -9/Materials Mutant | -9/Mines Resources | -11 -10 -9 -9 ----------- Run | Yrd Mat Mat Min Matter Collected 659 | 290 145 224 . Remotely . | . . . . Salvage Created 884 | 100 282 453 49 Parts 46 | 3 15 28 . Haulers Intercepted . | . . . . Recyclers Shooed 2 | . 1 1 . Parts Field Recycled . | . . . . Retrieved Matter . | . . . . Parts Self-Destructed . | . . . . Prevented . | . . . . Kills | -11 -10 -9 -9 ------- Run | Yrd Mat Mat Min Combat Hostiles Destroyed 21 | . 10 7 4 Cannons 20 | . 10 6 4 AOE 1 | . . 1 . Classes Destroyed 10 | 1 3 5 1 Worker 3 | . . 3 . Builder 1 | . . 1 . Recycler 4 | 1 . 3 . Operator 1 | . . 1 . Watcher 2 | . 1 1 . Swarmer 6 | . 6 . . Grunt 9 | . 4 5 . Brawler 1 | . . 1 . Duelist 1 | . . 1 . Assembled 4 | . . . 4 Best Kill Streak 8 | 1 6 8 4 Combat Bots Only 5 | . 5 5 4 Max Kills in Single Turn 3 | 1 1 3 1 Gunslinging . | . . . . Exploded 1 | . . 1 . Melee . | . . . . Uniques/NPCs Destroyed . | . . . . Combat | -11 -10 -9 -9 -------- Run | Yrd Mat Mat Min Hostile Shots Fired 88 | . 60 7 21 Missed 33 | . 27 1 5 Hits 55 | . 33 6 16 Melee 4 | . . 2 2 Projectile 51 | . 33 4 14 Critical Strikes 1 | . . . 1 Damage Taken 782 | 16 295 193 278 Core 121 | 16 63 . 42 Absorbed by Shields . | . . . . Core Remaining (%) 80 | 93 68 . . Volleys Fired 50 | . 25 18 7 Largest 2 | . 2 2 2 Hottest 136 | . 120 66 136 Shots Fired 95 | . 50 36 9 Gun . | . . . . Cannon 95 | . 50 36 9 Launcher . | . . . . Special . | . . . . Kinetic 36 | . . 36 . Thermal 59 | . 50 . 9 Explosive . | . . . . Electromagnetic . | . . . . Robot Hit Streak 7 | . 5 7 3 Robot Miss Streak 5 | . 5 2 2 Penetration Max . | . . . . Secondary Targets . | . . . . Shots Hit Robots 47 | . 22 20 5 Core Hits 34 | 1 12 17 4 Critical Kills . | . . . . Critical Parts Destroyed . | . . . . Critical Strikes 2 | . . 2 . Blast 2 | . . 2 . Melee Attacks . | . . . . Impact . | . . . . Slashing . | . . . . Piercing . | . . . . Sneak Attacks . | . . . . Combat Hostiles . | . . . . Follow-up Attacks . | . . . . Damage Inflicted 1275 | 18 406 726 125 Guns . | . . . . Cannons 946 | . 406 415 125 Explosions 311 | . . 311 . Melee . | . . . . Ramming 18 | 18 . . . Kinetic 415 | . . 415 . Thermal 531 | . 406 . 125 Explosive 311 | . . 311 . Electromagnetic . | . . . . Impact . | . . . . Slashing . | . . . . Piercing . | . . . . Highest Corruption 1 | . . 1 1 Average Corruption 1 | . . 1 1 Corruption Purged . | . . . . Corruption Blocked . | . . . . Effects 2 | . . 1 1 Parts Rejected 1 | . . . 1 Data Loss (major) 1 | . . 1 . Overload Shots . | . . . . Overflow Damage . | . . . . Projectiles . | . . . . Explosions . | . . . . Melee . | . . . . Knockbacks 1 | . . 1 . Impact . | . . . . Kinetic 1 | . . 1 . Secondary . | . . . . Self-Inflicted Damage 94 | 9 . 85 . Shots 1 | . . 1 . Rammed 1 | 1 . . . Targets Rammed 1 | 1 . . . Kicked . | . . . . Crushed . | . . . . Highest Temperature 468 | . 468 . 57 Average Temperature 148 | . 163 . 34 Received Heat Transfer 149 | . 45 24 80 Effects 3 | . 3 . . Shutdowns 1 | . 1 . . Matter Decay 1 | . 1 . . Damage (minor) 1 | . 1 . . Siege Activations . | . . . . Martial Activations . | . . . . Shielding Activations . | . . . . Robots Disrupted . | . . . . Combat Hostiles . | . . . . Robots Corrupted . | . . . . Combat Hostiles . | . . . . Parts Fried . | . . . . Impact Corruptions . | . . . . Robots Melted . | . . . . Combat Hostiles . | . . . . Parts Melted . | . . . . Heat Transferred 1073 | . 851 . 222 Parts Sabotaged . | . . . . Parts Stolen . | . . . . Parts Stripped . | . . . . Power Chain Reactions . | . . . . Alert | -11 -10 -9 -9 ------- Run | Yrd Mat Mat Min Maximum Alert Level . | . . . . Low Security (%) 100 | 100 100 100 100 Level 1 . | . . . . Level 2 . | . . . . Level 3 . | . . . . Level 4 . | . . . . Level 5 . | . . . . High Security . | . . . . Max Security . | . . . . Peak Influence 151 | 5 135 151 36 Initial 39 | . . 39 36 Average 37 | . 34 53 30 Influence Increases 618 | 5 357 256 . Destroy 0b10 Robot/C 340 | . 200 140 . Destroy 0b10 Robot/NC 55 | 5 5 45 . Destroy Leader 54 | . 32 22 . Disable Machine 45 | . 15 30 . Destroy Structure 19 | . . 19 . Lose Combat Pursuer 105 | . 105 . . Influence Decreases 612 | 5 264 256 87 Entered New Map 111 | . . 54 57 Time Decay 481 | 5 264 202 10 Lost Part 20 | . . . 20 Squads Dispatched 1 | . 1 . . Investigation . | . . . . Extermination . | . . . . Reinforcement 1 | . 1 . . Assault . | . . . . Garrison . | . . . . Intercept . | . . . . Searches Triggered . | . . . . Construction Impeded . | . . . . Haulers Reinforced . | . . . . Active Scanning Responses . | . . . . Cargo Convoy Interrupts . | . . . . Stealth | -11 -10 -9 -9 --------- Run | Yrd Mat Mat Min Distress Signals 5 | . 5 . . Communications Jammed . | . . . . Distress Signals . | . . . . Times Spotted 47 | . 22 10 15 Peak Tracking Total 19 | . 8 5 19 Tactical Retreats 6 | . 5 . 1 Traps | -11 -10 -9 -9 ------- Run | Yrd Mat Mat Min Traps Triggered 1 | . . 1 . Indirectly . | . . . . Trap Hack Attempts . | . . . . Triggered . | . . . . Disarmed . | . . . . Reprogrammed . | . . . . Reused . | . . . . Traps Extracted . | . . . . Installed . | . . . . Triggered . | . . . . Machines | -11 -10 -9 -9 ---------- Run | Yrd Mat Mat Min Machines Disabled 3 | . 1 2 . Max in Single Turn 1 | . 1 1 . Machines Repaired . | . . . . Machines Dismantled . | . . . . Machines Sabotaged . | . . . . Overloaded Fab Kills . | . . . . Hacking | -11 -10 -9 -9 --------- Run | Yrd Mat Mat Min Machines Accessed 1 | . 1 . . Terminals 1 | . 1 . . Fabricators . | . . . . Repair Stations . | . . . . Recycling Units . | . . . . Scanalyzers . | . . . . Garrison Access . | . . . . Total Hacks 4 | . 4 . . Successful 2 | . 2 . . Failed 2 | . 2 . . Catastrophic . | . . . . Database Lockouts . | . . . . Manual . | . . . . Terminals 4 | . 4 . . Fabricators . | . . . . Repair Stations . | . . . . Recycling Units . | . . . . Scanalyzers . | . . . . Garrison Access . | . . . . Terminal Hacks 2 | . 2 . . Record 2 | . 2 . . Fabricator Hacks . | . . . . Repair Station Hacks . | . . . . Recycling Unit Hacks . | . . . . Scanalyzer . | . . . . Garrison Access Hacks . | . . . . Unauthorized Hacks . | . . . . Terminals . | . . . . Fabricators . | . . . . Repair Stations . | . . . . Recycling Units . | . . . . Scanalyzers . | . . . . Garrison Access . | . . . . Data Cores Recovered 1 | . . 1 . Used . | . . . . Hacking Detections 1 | . 1 . . Full Trace Events . | . . . . Feedback Events . | . . . . Feedback Blocked . | . . . . Robot Schematics Acquired . | . . . . Robots Built . | . . . . Authchips . | . . . . Time . | . . . . Total Robot Build Rating . | . . . . Part Schematics Acquired . | . . . . Parts Built . | . . . . Authchips . | . . . . Time . | . . . . Total Part Build Rating . | . . . . Parts Repaired . | . . . . Time . | . . . . Parts Recycled . | . . . . Recycled Matter . | . . . . Retrieved Matter . | . . . . Retrieved Components . | . . . . Parts Scanalyzed . | . . . . Part Schematics Acquired . | . . . . Parts Damaged . | . . . . Bothacking | -11 -10 -9 -9 ------------ Run | Yrd Mat Mat Min Used RIF Installer . | . . . . Robots Hacked . | . . . . Non-combat . | . . . . Combat . | . . . . Robot Hacks Applied . | . . . . Relay Couplers Released . | . . . . Fabnet Peak Effective % . | . . . . Robots Rewired . | . . . . Allies Hacked . | . . . . Hacks Repelled . | . . . . Allies | -11 -10 -9 -9 -------- Run | Yrd Mat Mat Min Total Allies . | . . . . Largest Group . | . . . . Highest-Rated Group . | . . . . Highest-Rated Ally . | . . . . Total Orders . | . . . . Ally Attacks . | . . . . Total Damage . | . . . . Kills . | . . . . Allies Corrupted . | . . . . Allies Melted . | . . . . Intel | -11 -10 -9 -9 ------- Run | Yrd Mat Mat Min Active Infowar (turns) 123 | . 123 . . Structural 123 | . 123 . . Robot Analysis Total . | . . . . Derelict Logs Recovered . | . . . . Drone Launches . | . . . . Drone Recoveries . | . . . . Exploration | -11 -10 -9 -9 ------------- Run | Yrd Mat Mat Min Turns Passed 1844 | 119 1180 515 30 Spaces Moved 799 | 88 404 296 11 Core 40 | 39 . 1 . Treads . | . . . . Legs 745 | 35 404 295 11 Wheels 14 | 14 . . . Hover . | . . . . Flight . | . . . . Fastest Speed 50 | 50 120 120 120 Average Speed 126 | 115 122 135 120 Slowest Speed 400 | 200 190 400 120 Overloaded Moves . | . . . . Propulsion Burnouts . | . . . . Robots Hopped . | . . . . Potential Cave-ins . | . . . . Cave-ins Triggered . | . . . . Exploration Rate (%) 19 | 5 35 31 8 Regions Visited 3 Branch Regions 1 Pre-discovered Areas . | . . . . Known Exits Taken . | . . . . Unknown Exits Taken 3 | 1 1 1 . Scrap Searched . | . . . . Spaces Dug . | . . . . Terrain Destroyed 19 | . . 19 . Melee . | . . . . Projectile 1 | . . 1 . AOE 18 | . . 18 . Terrain Rammed . | . . . . Walls Destroyed . | . . . . Machines Disabled . | . . . . Actions | -11 -10 -9 -9 --------- Run | Yrd Mat Mat Min Total 1538 | 103 1042 375 18 Wait 626 | . 596 30 . Move 796 | 87 403 295 11 Hop . | . . . . Pick Up 11 | 4 2 5 . Fast Attach 15 | 6 3 6 . Attach 6 | 2 1 3 . Detach 10 | 2 3 5 . Swap 9 | 1 4 4 . Drop 14 | . 5 9 . Fire 50 | . 25 18 7 Melee . | . . . . Ram 1 | 1 . . . Kick . | . . . . Crush . | . . . . Escape Stasis . | . . . . Rewire . | . . . . Trap . | . . . . Miscellaneous . | . . . . Route ------- -11/Scrapyard -10/Materials -9/Materials (discovered 2 exits: [*Min x2]) -9/Mines History --------- Turn | Location | Event 3 | -11/Scrapyard | Discovered new exit (range 16) 120 | -11/Scrapyard | Entered Materials 306 | -10/Materials | Build established: Mutant 1253 | -10/Materials | Discovered new exit (range 14) 1300 | -10/Materials | Entered another Materials area 1300 | -9/Materials | Evolved 2 slots: Propulsion x2 1472 | -9/Materials | Build established: Scavenger-Mutant 1693 | -9/Materials | Discovered new exit (range 15) 1770 | -9/Materials | Discovered new exit (range 4) 1815 | -9/Materials | Entered Mines 1816 | -9/Mines | Assembled infested the area 1821 | -9/Mines | Assisted by a Guerilla fighting off Assembled 1845 | -9/Mines | Self-destructed Last Messages --------------- 01775_ System corrupted: Substantial component data lost. LOCATION=UNKNOWN GOAL=ESCAPE 01816_ ALERT: Infestation in the mines, dispatching Demolisher response squad. 01821_ A derelict emerges from the shadows: "You need to get out of here! I've been tracking a group of Assembled to figure out where they're coming from, and they're closing on this area, come on!" 01827_ as-52947 destroyed. 01833_ System corrupted: Particle Cannon rejected. 01833_ as-27562 destroyed. 01835_ as-63784 destroyed. 01839_ Aluminum Leg destroyed. 01843_ as-37771 destroyed. 01843_ Critical hit (Burn: +80). 01844_ Ion Engine destroyed. Map ----- +----------------------------------------------------+ | ?????????????????????????????????????????????????? | | ?????????????????????????????????????????????????? | | ?????????????????????????????????????????????????? | | ?????????????????????????????????????????????????? | | ?????????????????????????????????????????????????? | | ?????????????????????????????????????????????????? | | ????????????????????????????#????????????????????? | | ??????????????????????????## ????????????????????? | | ?????????????????????????? ????????????????????? | | ?????????????????????????? ????????????????????? | | ??????????????????????##?? ????????????????????? | | ??????????????????????# ?? ????????????????????? | | ??????????????????????# ??# #????????????????????? | | ??????????????????????# ??# #????????????????????? | | ??????????????????????# ### ????????????????????? | | ?????????????????????## #????????????????????? | | ????????????????????## #????????????????????? | | ???????????????###### #????????????????????? | | ???????????? #####????????????????? | | ???????????? #????????????????? | | ???????????????????###### a #????????????????? | | ????????????????????????# #### #????????????????? | | ????????????????????????# #?????????????????????? | | ????????????????????????# a#?????????????????????? | | ??????????# #######a #?????????????????????? | | ??????????# h @ #?????????????????????? | | ???????? ########a%#?????????????????????? | | ????????????????????????# %a $ ??????????????????? | | ????????????????????????# %a % ??????????????? | | ????????????????????????######## ??????????? | | ??????????????????????????????????# ?????????? | | ????????????????????????????????????? ??????????? | | ?????????????????????????????????????????????????? | | ?????????????????????????????????????????????????? | | ?????????????????????????????????????????????????? | | ?????????????????????????????????????????????????? | | ?????????????????????????????????????????????????? | | ?????????????????????????????????????????????????? | | | | | | | | | | | | | | | | | | | | | | | | | +----------------------------------------------------+ Best States ------------- Heat Dissipation 42 Energy Generation 10 Energy Capacity 250 Matter Stores 300 Matter Capacity 300 Sight Range 16 Terrain Scan Density 10 Evasion (%) 55 Item Schematics ----------------- None Robot Schematics ------------------ None Fabricated ------------ Nothing Repaired ---------- Nothing Alien Tech Used ----------------- None Achievements -------------- None Challenges ------------ None Game ------ Seed SmartbombStorageDoomcannon Manual? 0 Play Time 00:09:20 Cumulative 9.7 hours Start 2025.10.06 @ 12:44:49 End 2025.10.20 @ 13:04:13 Sessions 4 Manual Loads 0 Difficulty Rogue Special Mode None Game No. 28 Rogue 14 Adventurer 14 Explorer 0 Win Type - Total 0 Types 0/0/0/0/0/0/0/0/0/0 Lore% 5 Gallery% 16 Achievement% 22 Wizard Run 0 Options --------- Layout 1 ASCII 0 Keyboard 1 Movement Numpad Keybinds 0 Fullscreen 1 Font 24/Smallcaps Map View 50x35 Zoom Use 0% Tactical HUD 1 Map Filters NONE Filters NONE Steam 0 RUN: 92524665-4555-4216-829a-62d2744f7c68